[Event "Live Chess"]
[Site "Chess.com"]
[Date "2023.05.21"]
[Round "-"]
[White "Singapourfeuj"]
[Black "BillythekidFellowes"]
[Result "0-1"]
[WhiteElo "2191"]
[BlackElo "2034"]
[TimeControl "300"]
[EndTime "0:44:14 PDT"]
[Termination "BillythekidFellowes won by checkmate"]

1. d4 {[%clk 0:04:58.7]} 1... e5 {[%clk 0:04:57.6]} 2. dxe5 {[%clk 0:04:57.5]}
2... Nc6 {[%clk 0:04:57.1]} 3. Nf3 {[%clk 0:04:56.7]} 3... Qe7 {[%clk 0:04:57]}
4. Bf4 {[%clk 0:04:54.8]} 4... Qb4+ {[%clk 0:04:56.6]} 5. Bd2 {[%clk 0:04:51.1]}
5... Qxb2 {[%clk 0:04:56.1]} 6. Nc3 {[%clk 0:04:50.1]} 6... Bb4 {[%clk
0:04:54.7]} 7. Rb1 {[%clk 0:04:47.5]} 7... Qxc3 {[%clk 0:04:50.8]} 8. Bxc3
{[%clk 0:04:45.6]} 8... Bxc3+ {[%clk 0:04:50.7]} 9. Nd2 {[%clk 0:04:44.8]} 9...
Nxe5 {[%clk 0:04:49.9]} 10. Rb3 {[%clk 0:04:42.1]} 10... Ba5 {[%clk 0:04:46.9]}
11. e3 {[%clk 0:04:38.1]} 11... Nf6 {[%clk 0:04:42.7]} 12. Rb5 {[%clk
0:04:36.8]} 12... Nc6 {[%clk 0:04:41.1]} 13. Rxa5 {[%clk 0:04:35.1]} 13... Nxa5
{[%clk 0:04:41]} 14. Bd3 {[%clk 0:04:33.8]} 14... Nc6 {[%clk 0:04:40.1]} 15. O-O
{[%clk 0:04:31.8]} 15... d6 {[%clk 0:04:39.2]} 16. Ne4 {[%clk 0:04:30.7]} 16...
Nxe4 {[%clk 0:04:23.7]} 17. Bxe4 {[%clk 0:04:29.7]} 17... Be6 {[%clk 0:04:23]}
18. Qf3 {[%clk 0:04:26.3]} 18... Ne5 {[%clk 0:04:17.1]} 19. Qg3 {[%clk
0:04:23.6]} 19... O-O {[%clk 0:04:13.2]} 20. Bxb7 {[%clk 0:04:22]} 20... Rab8
{[%clk 0:04:12.7]} 21. Be4 {[%clk 0:04:20.7]} 21... Rb2 {[%clk 0:04:11.6]} 22.
f4 {[%clk 0:04:19.3]} 22... Nd7 {[%clk 0:03:58.6]} 23. f5 {[%clk 0:04:18.3]}
23... Bc4 {[%clk 0:03:57.8]} 24. Bd3 {[%clk 0:04:02.5]} 24... Bxd3 {[%clk
0:03:52.8]} 25. cxd3 {[%clk 0:04:01.5]} 25... Nf6 {[%clk 0:03:52]} 26. e4 {[%clk
0:03:59.5]} 26... Rxa2 {[%clk 0:03:49.3]} 27. Qf3 {[%clk 0:03:54.7]} 27... Rb8
{[%clk 0:03:46]} 28. e5 {[%clk 0:03:42.3]} 28... dxe5 {[%clk 0:03:39.8]} 29. g4
{[%clk 0:03:41.3]} 29... h6 {[%clk 0:03:36]} 30. Rf2 {[%clk 0:03:40.3]} 30...
Rb1+ {[%clk 0:03:29.5]} 31. Kg2 {[%clk 0:03:39]} 31... Rxf2+ {[%clk 0:03:28.7]}
32. Kxf2 {[%clk 0:03:37.2]} 32... Rb2+ {[%clk 0:03:27.4]} 33. Kg3 {[%clk
0:03:35.5]} 33... a5 {[%clk 0:03:26.7]} 34. Qa8+ {[%clk 0:03:32.8]} 34... Kh7
{[%clk 0:03:25.9]} 35. Qxa5 {[%clk 0:03:31.4]} 35... e4 {[%clk 0:03:19.9]} 36.
dxe4 {[%clk 0:03:24.8]} 36... Nxe4+ {[%clk 0:03:19.8]} 37. Kf4 {[%clk
0:03:23.5]} 37... Nf6 {[%clk 0:03:16.3]} 38. h4 {[%clk 0:03:20.2]} 38... Rc2
{[%clk 0:03:10.8]} 39. g5 {[%clk 0:03:17.1]} 39... Rc4+ {[%clk 0:03:09.5]} 40.
Kf3 {[%clk 0:03:15]} 40... Nd7 {[%clk 0:02:48.1]} 41. g6+ {[%clk 0:03:13.1]}
41... fxg6 {[%clk 0:02:42.4]} 42. fxg6+ {[%clk 0:03:09.9]} 42... Kxg6 {[%clk
0:02:37.4]} 43. h5+ {[%clk 0:03:07.7]} 43... Kf7 {[%clk 0:02:26.8]} 44. Qd5+
{[%clk 0:03:03.6]} 44... Ke7 {[%clk 0:02:21]} 45. Kg3 {[%clk 0:03:02.8]} 45...
Rc5 {[%clk 0:02:17.6]} 46. Qd4 {[%clk 0:02:56.7]} 46... Rg5+ {[%clk 0:02:12.5]}
47. Kf2 {[%clk 0:02:55.4]} 47... Nf6 {[%clk 0:02:09.6]} 48. Qe3+ {[%clk
0:02:50.2]} 48... Kf7 {[%clk 0:02:06.4]} 49. Qb3+ {[%clk 0:02:49]} 49... Rd5
{[%clk 0:02:03.4]} 50. Qc4 {[%clk 0:02:43.2]} 50... c5 {[%clk 0:01:58.6]} 51.
Kf3 {[%clk 0:02:40]} 51... Ke6 {[%clk 0:01:57.2]} 52. Qb3 {[%clk 0:02:38.2]}
52... Nxh5 {[%clk 0:01:54]} 53. Qb6+ {[%clk 0:02:35.7]} 53... Kf5 {[%clk
0:01:48]} 54. Qb7 {[%clk 0:02:28.3]} 54... Rd3+ {[%clk 0:01:44.5]} 55. Kf2
{[%clk 0:02:27.5]} 55... Rd2+ {[%clk 0:01:24.6]} 56. Ke3 {[%clk 0:02:24.7]}
56... Rd6 {[%clk 0:01:12.4]} 57. Qc8+ {[%clk 0:02:22.9]} 57... Re6+ {[%clk
0:01:09.9]} 58. Kf3 {[%clk 0:02:21.5]} 58... g5 {[%clk 0:01:07.2]} 59. Qxc5+
{[%clk 0:02:18.2]} 59... Kg6 {[%clk 0:01:03.2]} 60. Qc2+ {[%clk 0:02:16.6]}
60... Kg7 {[%clk 0:01:02]} 61. Qc7+ {[%clk 0:02:15.1]} 61... Kg6 {[%clk
0:01:00]} 62. Qc2+ {[%clk 0:02:13.6]} 62... Kf7 {[%clk 0:00:58.7]} 63. Qh7+
{[%clk 0:02:10.6]} 63... Ng7 {[%clk 0:00:58.1]} 64. Qd3 {[%clk 0:02:06.3]} 64...
h5 {[%clk 0:00:55.7]} 65. Qd7+ {[%clk 0:02:04.5]} 65... Kg6 {[%clk 0:00:52.8]}
66. Qd3+ {[%clk 0:02:00.4]} 66... Kh6 {[%clk 0:00:52.3]} 67. Qd5 {[%clk
0:01:56.3]} 67... Rf6+ {[%clk 0:00:50.8]} 68. Kg3 {[%clk 0:01:52.6]} 68... h4+
{[%clk 0:00:50.1]} 69. Kg4 {[%clk 0:01:51]} 69... Rf4+ {[%clk 0:00:49]} 70. Kh3
{[%clk 0:01:49.9]} 70... Rf6 {[%clk 0:00:42]} 71. Qg8 {[%clk 0:01:44.4]} 71...
Ne6 {[%clk 0:00:34.7]} 72. Kg4 {[%clk 0:01:38.6]} 72... Rf4+ {[%clk 0:00:32.8]}
73. Kh3 {[%clk 0:01:37.8]} 73... Rf6 {[%clk 0:00:27.8]} 74. Kg4 {[%clk
0:01:36.1]} 74... Ng7 {[%clk 0:00:24.9]} 75. Qh8+ {[%clk 0:01:32.1]} 75... Kg6
{[%clk 0:00:24.1]} 76. Qg8 {[%clk 0:01:31.2]} 76... Rf4+ {[%clk 0:00:23.1]} 77.
Kh3 {[%clk 0:01:30.2]} 77... Kf6 {[%clk 0:00:22.1]} 78. Qf8+ {[%clk 0:01:27.8]}
78... Kg6 {[%clk 0:00:21.6]} 79. Qg8 {[%clk 0:01:25.7]} 79... Rf3+ {[%clk
0:00:20.9]} 80. Kg2 {[%clk 0:01:23.7]} 80... Rg3+ {[%clk 0:00:20]} 81. Kh2
{[%clk 0:01:23]} 81... g4 {[%clk 0:00:19.2]} 82. Qd5 {[%clk 0:01:18.8]} 82...
Nf5 {[%clk 0:00:17.4]} 83. Qe6+ {[%clk 0:01:17]} 83... Kg5 {[%clk 0:00:16.7]}
84. Qg8+ {[%clk 0:01:12.1]} 84... Kf6 {[%clk 0:00:14.7]} 85. Qf8+ {[%clk
0:01:10.6]} 85... Ke5 {[%clk 0:00:13.8]} 86. Qc5+ {[%clk 0:01:07.4]} 86... Kf4
{[%clk 0:00:13]} 87. Qc4+ {[%clk 0:01:05.9]} 87... Kf3 {[%clk 0:00:11.7]} 88.
Qd5+ {[%clk 0:01:03.3]} 88... Kf4 {[%clk 0:00:11.6]} 89. Qc4+ {[%clk 0:01:01.5]}
89... Kg5 {[%clk 0:00:10.5]} 90. Qc1+ {[%clk 0:01:00.2]} 90... Re3 {[%clk
0:00:10]} 91. Qc8 {[%clk 0:00:56.8]} 91... g3+ {[%clk 0:00:09.9]} 92. Kh3 {[%clk
0:00:55.2]} 92... Kf4 {[%clk 0:00:09.8]} 93. Qc7+ {[%clk 0:00:53.7]} 93... Kf3
{[%clk 0:00:08.5]} 94. Qc6+ {[%clk 0:00:52.8]} 94... Re4 {[%clk 0:00:06.9]} 95.
Qd5 {[%clk 0:00:50.7]} 95... Kf4 {[%clk 0:00:06.8]} 96. Qd2+ {[%clk 0:00:49.3]}
96... Ne3 {[%clk 0:00:06.7]} 97. Qd6+ {[%clk 0:00:47.7]} 97... Kf3 {[%clk
0:00:06.6]} 98. Qf6+ {[%clk 0:00:45.2]} 98... Rf4 {[%clk 0:00:06.1]} 99. Qc6+
{[%clk 0:00:43.8]} 99... Kf2 {[%clk 0:00:05.9]} 100. Qd6 {[%clk 0:00:39.2]}
100... Rf3 {[%clk 0:00:05.1]} 101. Qd2+ {[%clk 0:00:37.8]} 101... Kg1 {[%clk
0:00:04.8]} 102. Qe1+ {[%clk 0:00:35.9]} 102... Nf1 {[%clk 0:00:04.3]} 103. Qe2
{[%clk 0:00:31.4]} 103... Rf2 {[%clk 0:00:04.2]} 104. Qe3 {[%clk 0:00:29.7]}
104... g2 {[%clk 0:00:04.1]} 105. Kxh4 {[%clk 0:00:26.9]} 105... Nh2 {[%clk
0:00:04]} 106. Kg3 {[%clk 0:00:24.1]} 106... Nf1+ {[%clk 0:00:03.3]} 107. Kg4
{[%clk 0:00:21.7]} 107... Nxe3+ {[%clk 0:00:03.2]} 108. Kg3 {[%clk 0:00:20.3]}
108... Kf1 {[%clk 0:00:03.1]} 109. Kh2 {[%clk 0:00:19.4]} 109... g1=Q+ {[%clk
0:00:03]} 110. Kh3 {[%clk 0:00:18.9]} 110... Rh2# {[%clk 0:00:02.8]} 0-1

[Event "Live Chess"]
[Site "Chess.com"]
[Date "2023.05.21"]
[Round "-"]
[White "Hacker_2009"]
[Black "raminguy"]
[Result "0-1"]
[WhiteElo "1911"]
[BlackElo "1940"]
[TimeControl "300"]
[EndTime "0:44:16 PDT"]
[Termination "raminguy won by checkmate"]

1. d4 {[%clk 0:04:57.3]} 1... d5 {[%clk 0:04:58.5]} 2. Nf3 {[%clk 0:04:55.3]}
2... Nf6 {[%clk 0:04:57.8]} 3. e3 {[%clk 0:04:52.5]} 3... e6 {[%clk 0:04:56.2]}
4. c4 {[%clk 0:04:51.1]} 4... Be7 {[%clk 0:04:54.9]} 5. Nc3 {[%clk 0:04:48.4]}
5... O-O {[%clk 0:04:54.1]} 6. Bd3 {[%clk 0:04:45.8]} 6... a6 {[%clk 0:04:51.4]}
7. O-O {[%clk 0:04:44.3]} 7... dxc4 {[%clk 0:04:50]} 8. Bxc4 {[%clk 0:04:43.1]}
8... b5 {[%clk 0:04:49.9]} 9. Bd3 {[%clk 0:04:42.4]} 9... Bb7 {[%clk 0:04:49.1]}
10. b3 {[%clk 0:04:41.8]} 10... c5 {[%clk 0:04:46.9]} 11. Bb2 {[%clk 0:04:41.1]}
11... cxd4 {[%clk 0:04:44.4]} 12. Nxd4 {[%clk 0:04:39.5]} 12... Nbd7 {[%clk
0:04:39.5]} 13. Rc1 {[%clk 0:04:37.5]} 13... Ne5 {[%clk 0:04:36.9]} 14. Bb1
{[%clk 0:04:35.4]} 14... Rc8 {[%clk 0:04:34]} 15. Qe2 {[%clk 0:04:31.8]} 15...
Ng6 {[%clk 0:04:22.6]} 16. Rfd1 {[%clk 0:04:28.9]} 16... Qb6 {[%clk 0:04:18.5]}
17. a3 {[%clk 0:04:11.5]} 17... Rfd8 {[%clk 0:04:15.4]} 18. b4 {[%clk
0:04:10.3]} 18... Rc7 {[%clk 0:03:45]} 19. Rd2 {[%clk 0:03:50.1]} 19... Rcd7
{[%clk 0:03:41.2]} 20. Rcd1 {[%clk 0:03:48.9]} 20... Ne5 {[%clk 0:03:20]} 21.
Nb3 {[%clk 0:03:43.3]} 21... Nc4 {[%clk 0:03:13.1]} 22. Rxd7 {[%clk 0:03:41.1]}
22... Rxd7 {[%clk 0:03:11.3]} 23. Rxd7 {[%clk 0:03:39.4]} 23... Nxd7 {[%clk
0:03:09.8]} 24. Bc1 {[%clk 0:03:37.6]} 24... Qc6 {[%clk 0:03:07.5]} 25. Qc2
{[%clk 0:03:33.5]} 25... Qxg2# {[%clk 0:03:05.2]} 0-1

[Event "Live Chess"]
[Site "Chess.com"]
[Date "2023.05.21"]
[Round "-"]
[White "Salpingidis"]
[Black "LiamClery2020"]
[Result "1-0"]
[WhiteElo "2220"]
[BlackElo "2024"]
[TimeControl "300"]
[EndTime "0:44:26 PDT"]
[Termination "Salpingidis won by resignation"]

1. d4 {[%clk 0:04:56.3]} 1... Nf6 {[%clk 0:04:59.9]} 2. c4 {[%clk 0:04:55.5]}
2... g6 {[%clk 0:04:58.3]} 3. Nc3 {[%clk 0:04:55.1]} 3... d5 {[%clk 0:04:57.5]}
4. cxd5 {[%clk 0:04:53.7]} 4... Nxd5 {[%clk 0:04:57.4]} 5. Bd2 {[%clk
0:04:53.1]} 5... Bg7 {[%clk 0:04:55.9]} 6. e4 {[%clk 0:04:52.8]} 6... Nxc3
{[%clk 0:04:55]} 7. Bxc3 {[%clk 0:04:52.7]} 7... c5 {[%clk 0:04:54.5]} 8. d5
{[%clk 0:04:52.1]} 8... Bxc3+ {[%clk 0:04:53.4]} 9. bxc3 {[%clk 0:04:52]} 9...
O-O {[%clk 0:04:52.9]} 10. Be2 {[%clk 0:04:51.3]} 10... f5 {[%clk 0:04:52.5]}
11. e5 {[%clk 0:04:48.1]} 11... e6 {[%clk 0:04:49.5]} 12. d6 {[%clk 0:04:42.6]}
12... Nc6 {[%clk 0:04:48.8]} 13. Nf3 {[%clk 0:04:40.8]} 13... g5 {[%clk
0:04:48.2]} 14. h3 {[%clk 0:04:25.9]} 14... c4 {[%clk 0:04:34.2]} 15. Bxc4
{[%clk 0:04:22.1]} 15... Qa5 {[%clk 0:04:32.7]} 16. Qd2 {[%clk 0:04:17.8]} 16...
Nxe5 {[%clk 0:04:30.5]} 17. Qxg5+ {[%clk 0:04:17]} 17... Kh8 {[%clk 0:04:28.8]}
18. Nxe5 {[%clk 0:03:56.9]} 18... Qxe5+ {[%clk 0:04:28.7]} 19. Qe3 {[%clk
0:03:56.4]} 19... Qxd6 {[%clk 0:04:25.4]} 20. O-O {[%clk 0:03:53.8]} 20... f4
{[%clk 0:04:20.6]} 21. Qd4+ {[%clk 0:03:43.2]} 21... Qxd4 {[%clk 0:04:19.3]} 22.
cxd4 {[%clk 0:03:43.1]} 22... Bd7 {[%clk 0:04:12.2]} 23. Rfe1 {[%clk 0:03:42.3]}
23... Rf6 {[%clk 0:04:10.1]} 24. d5 {[%clk 0:03:39]} 24... exd5 {[%clk
0:04:07.4]} 25. Bxd5 {[%clk 0:03:38.9]} 25... Bc6 {[%clk 0:04:01]} 26. Bxc6
{[%clk 0:03:32.2]} 26... bxc6 {[%clk 0:03:56.6]} 27. Re7 {[%clk 0:03:31.7]}
27... f3 {[%clk 0:03:55.2]} 28. g4 {[%clk 0:03:29.8]} 28... Kg8 {[%clk
0:03:53.5]} 29. Rd1 {[%clk 0:03:27.8]} 29... Rf7 {[%clk 0:03:52.7]} 30. Re6
{[%clk 0:03:22.9]} 30... Rc8 {[%clk 0:03:49]} 31. Rdd6 {[%clk 0:03:21.8]} 31...
Rfc7 {[%clk 0:03:47]} 32. Rf6 {[%clk 0:03:18.6]} 32... c5 {[%clk 0:03:41.4]} 33.
Rxf3 {[%clk 0:03:17.6]} 33... c4 {[%clk 0:03:40.5]} 34. Rc3 {[%clk 0:03:17.2]}
34... Kf7 {[%clk 0:03:39.5]} 35. f4 {[%clk 0:03:14.6]} 35... Ke7 {[%clk
0:03:38.7]} 36. Rd4 {[%clk 0:03:10.3]} 36... Rc5 {[%clk 0:03:30.4]} 37. Kf2
{[%clk 0:03:08.6]} 37... R8c6 {[%clk 0:03:29.1]} 38. Kf3 {[%clk 0:03:07]} 38...
Ke6 {[%clk 0:03:26.8]} 39. f5+ {[%clk 0:03:05.9]} 39... Kf6 {[%clk 0:03:25.9]}
40. Kf4 {[%clk 0:03:04.6]} 40... h6 {[%clk 0:03:20.6]} 41. h4 {[%clk 0:03:03.9]}
41... Kf7 {[%clk 0:03:19.4]} 42. g5 {[%clk 0:03:02.6]} 42... hxg5+ {[%clk
0:03:18.5]} 43. hxg5 {[%clk 0:03:02.5]} 43... Ra6 {[%clk 0:03:16.4]} 44. Rdxc4
{[%clk 0:02:58.4]} 44... Rxc4+ {[%clk 0:03:14.8]} 45. Rxc4 {[%clk 0:02:58.3]}
45... Rxa2 {[%clk 0:03:14.4]} 46. Rc7+ {[%clk 0:02:57]} 46... Kf8 {[%clk
0:03:13.8]} 47. g6 {[%clk 0:02:56.1]} 47... Ra4+ {[%clk 0:03:12.7]} 48. Kg5
{[%clk 0:02:55.5]} 48... Ra1 {[%clk 0:03:10.8]} 49. Kf6 {[%clk 0:02:53.8]} 49...
Ra6+ {[%clk 0:03:09.8]} 50. Kg5 {[%clk 0:02:53.2]} 50... Ra1 {[%clk 0:03:09.1]}
51. Rc8+ {[%clk 0:02:40.3]} 51... Ke7 {[%clk 0:03:05.5]} 52. f6+ {[%clk
0:02:38.8]} 52... Ke6 {[%clk 0:03:04.8]} 53. Re8+ {[%clk 0:02:35.5]} 53... Kd7
{[%clk 0:03:02.9]} 54. f7 {[%clk 0:02:35]} 54... Rg1+ {[%clk 0:03:01.8]} 55. Kh6
{[%clk 0:02:34.3]} 55... Rh1+ {[%clk 0:03:01.1]} 56. Kg7 {[%clk 0:02:33.6]} 1-0

[Event "Live Chess"]
[Site "Chess.com"]
[Date "2023.05.21"]
[Round "-"]
[White "friarnator"]
[Black "Tilbs_12"]
[Result "1-0"]
[WhiteElo "1994"]
[BlackElo "1560"]
[TimeControl "300"]
[EndTime "0:44:42 PDT"]
[Termination "friarnator won by resignation"]

1. e4 {[%clk 0:04:58.5]} 1... c6 {[%clk 0:04:58.5]} 2. Nc3 {[%clk 0:04:56.1]}
2... d5 {[%clk 0:04:57.2]} 3. Nf3 {[%clk 0:04:54.9]} 3... dxe4 {[%clk
0:04:55.9]} 4. Nxe4 {[%clk 0:04:54.8]} 4... Nf6 {[%clk 0:04:55.1]} 5. Qe2 {[%clk
0:04:50]} 5... Nxe4 {[%clk 0:04:48.5]} 6. Qxe4 {[%clk 0:04:49.9]} 6... Nd7
{[%clk 0:04:46.7]} 7. Bc4 {[%clk 0:04:47.5]} 7... Nf6 {[%clk 0:04:45.2]} 8. Ne5
{[%clk 0:04:45.9]} 8... e6 {[%clk 0:04:38.7]} 9. Qe2 {[%clk 0:04:43.7]} 9... Bd6
{[%clk 0:04:33.9]} 10. d4 {[%clk 0:04:42]} 10... O-O {[%clk 0:04:32]} 11. Bg5
{[%clk 0:04:40.7]} 11... Be7 {[%clk 0:04:28.4]} 12. O-O-O {[%clk 0:04:39.5]}
12... Nd5 {[%clk 0:04:26.8]} 13. h4 {[%clk 0:04:36.3]} 13... f6 {[%clk
0:04:15.3]} 14. Nf3 {[%clk 0:04:18.5]} 14... fxg5 {[%clk 0:04:12.7]} 15. hxg5
{[%clk 0:04:17.6]} 15... Bxg5+ {[%clk 0:04:07.2]} 16. Kb1 {[%clk 0:04:16.6]}
16... Bf6 {[%clk 0:04:03.5]} 17. Bd3 {[%clk 0:04:04]} 17... h6 {[%clk
0:03:40.4]} 18. Qe4 {[%clk 0:04:01.7]} 18... Ne7 {[%clk 0:03:27.5]} 19. Rxh6
{[%clk 0:03:57.1]} 19... Nf5 {[%clk 0:03:24.7]} 20. Rh2 {[%clk 0:03:26.3]} 20...
Qe8 {[%clk 0:03:13.8]} 21. Rdh1 {[%clk 0:03:19.6]} 21... Kf7 {[%clk 0:02:59]}
22. g4 {[%clk 0:02:45]} 22... Nd6 {[%clk 0:02:33.3]} 23. Qf4 {[%clk 0:02:30.6]}
23... Ke7 {[%clk 0:02:31.1]} 24. Rh7 {[%clk 0:02:28.9]} 24... Nf7 {[%clk
0:01:50.3]} 25. g5 {[%clk 0:02:17.9]} 25... Bxg5 {[%clk 0:01:23.9]} 26. Nxg5
{[%clk 0:02:14.5]} 26... Nxg5 {[%clk 0:01:22.6]} 27. Qxg5+ {[%clk 0:02:13]}
27... Kd6 {[%clk 0:01:17.5]} 28. Qe5+ {[%clk 0:01:55.6]} 28... Kd7 {[%clk
0:01:09.6]} 29. Rxg7+ {[%clk 0:01:54.3]} 29... Rf7 {[%clk 0:01:08.3]} 30. Rxf7+
{[%clk 0:01:52.7]} 30... Qxf7 {[%clk 0:01:07.3]} 31. Rh7 {[%clk 0:01:52.6]}
31... Qxh7 {[%clk 0:01:05.7]} 32. Bxh7 {[%clk 0:01:52]} 32... Ke7 {[%clk
0:01:03.4]} 1-0

[Event "Live Chess"]
[Site "Chess.com"]
[Date "2023.05.21"]
[Round "-"]
[White "Long1968"]
[Black "mattihelenius2"]
[Result "1-0"]
[WhiteElo "1013"]
[BlackElo "492"]
[TimeControl "300"]
[EndTime "0:45:23 PDT"]
[Termination "Long1968 won by resignation"]

1. e4 {[%clk 0:04:57.6]} 1... e5 {[%clk 0:04:57.9]} 2. f4 {[%clk 0:04:55.5]}
2... d6 {[%clk 0:04:55.1]} 3. Bc4 {[%clk 0:04:51]} 3... exf4 {[%clk 0:04:51.1]}
4. Nf3 {[%clk 0:04:47.6]} 4... Nf6 {[%clk 0:04:48.9]} 5. Nc3 {[%clk 0:04:43.9]}
5... Bf5 {[%clk 0:04:46.6]} 6. Qe2 {[%clk 0:04:36.3]} 6... Bg4 {[%clk
0:04:42.5]} 7. O-O {[%clk 0:04:28.1]} 7... Nc6 {[%clk 0:04:41.1]} 8. Qf2 {[%clk
0:03:59.2]} 8... d5 {[%clk 0:04:37]} 9. exd5 {[%clk 0:03:34.5]} 9... Nxd5 {[%clk
0:04:35.7]} 10. Bxd5 {[%clk 0:03:25.8]} 10... b6 {[%clk 0:04:28.9]} 11. Bxc6+
{[%clk 0:03:18.2]} 11... Ke7 {[%clk 0:04:25.7]} 12. Re1+ {[%clk 0:03:12.6]}
12... Kd6 {[%clk 0:04:19]} 13. Bxa8 {[%clk 0:03:04.4]} 13... Qxa8 {[%clk
0:04:18]} 14. Qd4+ {[%clk 0:02:52.9]} 14... Kc6 {[%clk 0:04:14.7]} 15. Qe4+
{[%clk 0:02:43.2]} 15... Kd7 {[%clk 0:04:11.6]} 1-0

[Event "Live Chess"]
[Site "Chess.com"]
[Date "2023.05.21"]
[Round "-"]
[White "Nazar_777"]
[Black "OSmith06"]
[Result "0-1"]
[WhiteElo "1580"]
[BlackElo "1653"]
[TimeControl "300"]
[EndTime "0:45:45 PDT"]
[Termination "OSmith06 won by checkmate"]

1. e3 {[%clk 0:04:46.4]} 1... Nf6 {[%clk 0:04:57.3]} 2. h4 {[%clk 0:04:45.5]}
2... e6 {[%clk 0:04:55.7]} 3. a3 {[%clk 0:04:45]} 3... d5 {[%clk 0:04:55.2]} 4.
c4 {[%clk 0:04:44.4]} 4... c5 {[%clk 0:04:54]} 5. cxd5 {[%clk 0:04:43.6]} 5...
exd5 {[%clk 0:04:52]} 6. Nc3 {[%clk 0:04:43.1]} 6... Nc6 {[%clk 0:04:51]} 7. Be2
{[%clk 0:04:42.4]} 7... Bf5 {[%clk 0:04:49.1]} 8. Nf3 {[%clk 0:04:41.1]} 8...
Bd6 {[%clk 0:04:44.9]} 9. Ng5 {[%clk 0:04:40]} 9... h6 {[%clk 0:04:42]} 10. Nf3
{[%clk 0:04:36.9]} 10... Qe7 {[%clk 0:04:32.6]} 11. Qb3 {[%clk 0:04:35.3]} 11...
d4 {[%clk 0:04:10.6]} 12. Nd5 {[%clk 0:04:31]} 12... Nxd5 {[%clk 0:04:05.2]} 13.
Qxd5 {[%clk 0:04:29.4]} 13... Be4 {[%clk 0:03:52.6]} 14. Qc4 {[%clk 0:04:26.5]}
14... O-O {[%clk 0:03:22.3]} 15. b3 {[%clk 0:04:24.8]} 15... a6 {[%clk
0:03:20.9]} 16. Bb2 {[%clk 0:04:23.4]} 16... b5 {[%clk 0:03:19.5]} 17. Qc1
{[%clk 0:04:17.6]} 17... d3 {[%clk 0:03:16.2]} 18. Bd1 {[%clk 0:04:13.9]} 18...
Bxf3 {[%clk 0:03:00.6]} 19. Bxf3 {[%clk 0:04:11]} 19... Rac8 {[%clk 0:02:54.6]}
20. g4 {[%clk 0:04:04.3]} 20... Be5 {[%clk 0:02:43]} 21. Rg1 {[%clk 0:03:59.8]}
21... Na5 {[%clk 0:02:31.4]} 22. Bxe5 {[%clk 0:03:45.2]} 22... Nxb3 {[%clk
0:02:14.2]} 23. Qb1 {[%clk 0:03:41.7]} 23... Qxe5 {[%clk 0:02:10.5]} 24. Ra2
{[%clk 0:03:33]} 24... c4 {[%clk 0:02:01.8]} 25. Bd1 {[%clk 0:03:30]} 25... Nd4
{[%clk 0:01:56.7]} 26. f4 {[%clk 0:03:17.4]} 26... Qe4 {[%clk 0:01:51.7]} 27.
Kf2 {[%clk 0:03:11.5]} 27... f5 {[%clk 0:01:43.4]} 28. Rg3 {[%clk 0:02:54.8]}
28... Ne6 {[%clk 0:01:35.3]} 29. Qb2 {[%clk 0:02:46]} 29... fxg4 {[%clk
0:01:29.2]} 30. Bxg4 {[%clk 0:02:41.7]} 30... Nxf4 {[%clk 0:01:14.9]} 31. Be6+
{[%clk 0:02:35.3]} 31... Nxe6+ {[%clk 0:01:13.2]} 32. Kg1 {[%clk 0:02:26.2]}
32... Qxh4 {[%clk 0:00:54.7]} 33. Rg2 {[%clk 0:02:19.3]} 33... Qf6 {[%clk
0:00:49.2]} 34. Qxf6 {[%clk 0:02:17]} 34... Rxf6 {[%clk 0:00:49.1]} 35. a4
{[%clk 0:02:13.4]} 35... Rcf8 {[%clk 0:00:47.3]} 36. axb5 {[%clk 0:02:10.6]}
36... axb5 {[%clk 0:00:47.2]} 37. Ra7 {[%clk 0:02:08.6]} 37... Rf1+ {[%clk
0:00:45.9]} 38. Kh2 {[%clk 0:02:06.9]} 38... Ng5 {[%clk 0:00:44.5]} 39. Kg3
{[%clk 0:02:02.7]} 39... R8f3+ {[%clk 0:00:40]} 40. Kg4 {[%clk 0:02:00.8]} 40...
Rf7 {[%clk 0:00:34.7]} 41. Ra8+ {[%clk 0:01:54.9]} 41... Kh7 {[%clk 0:00:34.2]}
42. Ra6 {[%clk 0:01:46.3]} 42... R1f2 {[%clk 0:00:32.5]} 43. Rg3 {[%clk
0:01:39.6]} 43... Ne4 {[%clk 0:00:31.5]} 44. Rh3 {[%clk 0:01:21.1]} 44... Rg2+
{[%clk 0:00:30.5]} 45. Kh4 {[%clk 0:01:11.4]} 45... Nxd2 {[%clk 0:00:21.5]} 46.
Rg3 {[%clk 0:01:06.5]} 46... Rxg3 {[%clk 0:00:20.1]} 47. Kxg3 {[%clk 0:01:03.9]}
47... Rf3+ {[%clk 0:00:19.7]} 48. Kg4 {[%clk 0:01:01.9]} 48... Rxe3 {[%clk
0:00:19.2]} 49. Kf4 {[%clk 0:00:59.6]} 49... Nf1 {[%clk 0:00:18.6]} 50. Kf5
{[%clk 0:00:56.6]} 50... d2 {[%clk 0:00:18]} 51. Rd6 {[%clk 0:00:54.2]} 51...
Rd3 {[%clk 0:00:17.5]} 52. Ra6 {[%clk 0:00:49.3]} 52... d1=Q {[%clk 0:00:16.8]}
53. Ke4 {[%clk 0:00:45.6]} 53... Qf3+ {[%clk 0:00:16.1]} 54. Ke5 {[%clk
0:00:44.3]} 54... Qe3+ {[%clk 0:00:14.7]} 55. Kf5 {[%clk 0:00:43.1]} 55... Rd5+
{[%clk 0:00:13]} 56. Kg4 {[%clk 0:00:39.9]} 56... Qg3# {[%clk 0:00:11.9]} 0-1

[Event "Live Chess"]
[Site "Chess.com"]
[Date "2023.05.21"]
[Round "-"]
[White "MJMykh"]
[Black "Tushinskiy"]
[Result "0-1"]
[WhiteElo "1132"]
[BlackElo "2185"]
[TimeControl "300"]
[EndTime "0:46:12 PDT"]
[Termination "Tushinskiy won by checkmate"]

1. e4 {[%clk 0:04:58.2]} 1... e5 {[%clk 0:04:57.2]} 2. Nf3 {[%clk 0:04:56.7]}
2... d6 {[%clk 0:04:57.1]} 3. h3 {[%clk 0:04:54.6]} 3... Nf6 {[%clk 0:04:55.9]}
4. Nc3 {[%clk 0:04:53.1]} 4... Be7 {[%clk 0:04:54.9]} 5. Bc4 {[%clk 0:04:51.7]}
5... O-O {[%clk 0:04:53.3]} 6. Ng5 {[%clk 0:04:51.2]} 6... c6 {[%clk 0:04:52.3]}
7. Nxf7 {[%clk 0:04:50.4]} 7... Rxf7 {[%clk 0:04:51.5]} 8. Bxf7+ {[%clk
0:04:50.2]} 8... Kxf7 {[%clk 0:04:51.4]} 9. O-O {[%clk 0:04:49.6]} 9... Nbd7
{[%clk 0:04:48.8]} 10. d3 {[%clk 0:04:48.5]} 10... Nc5 {[%clk 0:04:47.6]} 11.
Bg5 {[%clk 0:04:46]} 11... Ne6 {[%clk 0:04:46.6]} 12. Bxf6 {[%clk 0:04:45.2]}
12... Bxf6 {[%clk 0:04:46.3]} 13. a3 {[%clk 0:04:44.9]} 13... Qb6 {[%clk
0:04:44.5]} 14. Rb1 {[%clk 0:04:40.9]} 14... Bd7 {[%clk 0:04:42.6]} 15. Qh5+
{[%clk 0:04:40.1]} 15... Kg8 {[%clk 0:04:40.8]} 16. Qe2 {[%clk 0:04:34.6]} 16...
Rf8 {[%clk 0:04:38.4]} 17. Qd2 {[%clk 0:04:30]} 17... Bg5 {[%clk 0:04:36.2]} 18.
Qe2 {[%clk 0:04:28.3]} 18... Nf4 {[%clk 0:04:34.7]} 19. Qd1 {[%clk 0:04:22.2]}
19... Rf6 {[%clk 0:04:27.2]} 20. Na4 {[%clk 0:04:11.3]} 20... Qd8 {[%clk
0:04:25]} 21. Nc3 {[%clk 0:04:07.1]} 21... Qe8 {[%clk 0:04:22]} 22. d4 {[%clk
0:04:05.4]} 22... exd4 {[%clk 0:04:12.9]} 23. Qxd4 {[%clk 0:04:03.9]} 23... Qg6
{[%clk 0:04:12.1]} 24. Qxa7 {[%clk 0:03:55.5]} 24... Bxh3 {[%clk 0:04:05.4]} 25.
Qxb7 {[%clk 0:03:42.9]} 25... Bxg2 {[%clk 0:04:02.7]} 26. Rfd1 {[%clk
0:03:40.5]} 26... Bf3 {[%clk 0:03:58.6]} 27. Rdc1 {[%clk 0:03:35.5]} 27... Bh4+
{[%clk 0:03:56.8]} 28. Kf1 {[%clk 0:03:33.4]} 28... Qg2+ {[%clk 0:03:55.4]} 29.
Ke1 {[%clk 0:03:32.2]} 29... Qxf2# {[%clk 0:03:54.5]} 0-1